{"text_format":"3","workbook":"xlsx","n_sheets":2,"sheets":["Початок","Весільний бюджет"],"read":"whole","date_system":"1900"}

{"sheet":"Початок","index":0,"n_rows":7,"n_cols":2,"rows_kept":7}
[null,"ПРО ЦЕЙ ШАБЛОН"]
[null,"Скористайтеся цим шаблоном, щоб записати фактичні витрати на різні покупки для весілля та відстежити їх відповідність запланованим сумам."]
[null,"Введіть витрати на вбрання, оформлення, подарунки, квіти, музику, фотографії, банкет, друковані матеріали, транспорт та інші витрати у відповідні таблиці."]
[null,"Загальна сума орієнтовних і фактичних витрат обчислюється автоматично."]
[null,"Примітка. "]
[null,"Додаткові вказівки наведено в стовпці A на аркуші \"ВЕСІЛЬНИЙ БЮДЖЕТ\". Цей текст приховано навмисно. Щоб вилучити текст, виберіть стовпець A й натисніть клавішу Delete. Щоб відобразити текст, виберіть стовпець A та змініть колір шрифту."]
[null,"Щоб дізнатися більше про таблиці, натисніть клавішу Shift, а потім F10 у таблиці, виберіть \"Таблиця\", а потім – \"Текст заміщення\"."]

{"sheet":"Весільний бюджет","index":1,"n_rows":93,"n_cols":4,"rows_kept":93,"merged":[[0,1,0,3],[2,1,2,3],[6,1,6,3],[15,1,15,3],[25,1,25,3],[34,1,34,3],[43,1,43,3],[50,1,50,3],[59,1,59,3],[68,1,68,3],[77,1,77,3],[85,1,85,3]]}
[null,"ВЕСІЛЬНИЙ БЮДЖЕТ"]
[]
[null,"ЗАГАЛЬНІ ВИТРАТИ "]
[null,"Позиція ","Орієнтовно","Фактично"]
[null,"Загальні витрати ",{"$f":"SUM(Одяг[[#Totals],[Орієнтовно]],Прикраси[[#Totals],[Орієнтовно]],Подарунки[[#Totals],[Орієнтовно]],Букети_квітів[[#Totals],[Орієнтовно]],Музика[[#Totals],[Орієнтовно]],Фотопослуги[[#Totals],[Орієнтовно]],Банкет[[#Totals],[Орієнтовно]],Канцтовари_та_друк[[#Totals],[Орієнтовно]],Транспорт[[#Totals],[Орієнтовно]],ІншіВитрати[[#Totals],[Орієнтовно]])","v":0},{"$f":"SUM(Одяг[[#Totals],[Фактично]],Прикраси[[#Totals],[Фактично]],Подарунки[[#Totals],[Фактично]],Букети_квітів[[#Totals],[Фактично]],Музика[[#Totals],[Фактично]],Фотопослуги[[#Totals],[Фактично]],Банкет[[#Totals],[Фактично]],Канцтовари_та_друк[[#Totals],[Фактично]],Транспорт[[#Totals],[Фактично]],ІншіВитрати[[#Totals],[Фактично]],)","v":0}]
[]
[null,"ВБРАННЯ"]
[null,"Позиція ","Орієнтовно","Фактично"]
[null,"Обручка для заручин"]
[null,"Весільні обручки"]
[null,"Весільна сукня"]
[null,"Фата / головний убір"]
[null,"Інші:"]
[null,"Загальні витрати на вбрання",{"$f":"SUBTOTAL(109,Одяг[Орієнтовно])","v":0},{"$f":"SUBTOTAL(109,Одяг[Фактично])","v":0}]
[]
[null,"ОФОРМЛЕННЯ"]
[null,"Позиція ","Орієнтовно","Фактично"]
[null,"Банти для церковних лав та інших місць"]
[null,"Оформлення столів (без квітів)"]
[null,"Свічки"]
[null,"Освітлення"]
[null,"Повітряні кульки"]
[null,"Інші:"]
[null,"Загальні витрати на оформлення",{"$f":"SUBTOTAL(109,Прикраси[Орієнтовно])","v":0},{"$f":"SUBTOTAL(109,Прикраси[Фактично])","v":0}]
[]
[null,"ПОДАРУНКИ"]
[null,"Позиція ","Орієнтовно","Фактично"]
[null,"Гості"]
[null,"Наречений і наречена"]
[null,"Батьки"]
[null,"Тамада / інші учасники"]
[null,"Інші:"]
[null,"Загальні витрати на подарунки",{"$f":"SUBTOTAL(109,Подарунки[Орієнтовно])","v":0},{"$f":"SUBTOTAL(109,Подарунки[Фактично])","v":0}]
[]
[null,"КВІТИ"]
[null,"Позиція ","Орієнтовно","Фактично"]
[null,"Букети"]
[null,"Бутоньєрки"]
[null,"Браслети"]
[null,"Церемонія"]
[null,"Інші:"]
[null,"Загальні витрати на квіти",{"$f":"SUBTOTAL(109,Букети_квітів[Орієнтовно])","v":0},{"$f":"SUBTOTAL(109,Букети_квітів[Фактично])","v":0}]
[]
[null,"МУЗИКА"]
[null,"Позиція ","Орієнтовно","Фактично"]
[null,"Музиканти на церемонію"]
[null,"Музичний гурт / діджей на банкет"]
[null,"Інші:"]
[null,"Загальні витрати на музику",{"$f":"SUBTOTAL(109,Музика[Орієнтовно])","v":0},{"$f":"SUBTOTAL(109,Музика[Фактично])","v":0}]
[]
[null,"ФОТОГРАФІЇ"]
[null,"Позиція ","Орієнтовно","Фактично"]
[null,"Фотосесія у весільному одязі"]
[null,"Фотосесія у звичайній обстановці"]
[null,"Фотокопії"]
[null,"Фотоальбоми"]
[null,"Інші:"]
[null,"Загальні витрати на фотографії",{"$f":"SUBTOTAL(109,Фотопослуги[Орієнтовно])","v":0},{"$f":"SUBTOTAL(109,Фотопослуги[Фактично])","v":0}]
[]
[null,"БАНКЕТ "]
[null,"Позиція ","Орієнтовно","Фактично"]
[null,"Плата за приміщення та зал"]
[null,"Столи та стільці"]
[null,"Їжа"]
[null,"Столова білизна"]
[null,"Інші:"]
[null,"Загальні витрати на банкет (без музики та оформлення)",{"$f":"SUBTOTAL(109,Банкет[Орієнтовно])","v":0},{"$f":"SUBTOTAL(109,Банкет[Фактично])","v":0}]
[]
[null,"ДРУКОВАНІ МАТЕРІАЛИ ТА КАНЦТОВАРИ"]
[null,"Позиція ","Орієнтовно","Фактично"]
[null,"Запрошення"]
[null,"Оголошення"]
[null,"Листівки з подякою"]
[null,"Особисті друковані матеріали "]
[null,"Інші:"]
[null,"Загальні витрати на канцтовари та друк",{"$f":"SUBTOTAL(109,Канцтовари_та_друк[Орієнтовно])","v":0},{"$f":"SUBTOTAL(109,Канцтовари_та_друк[Фактично])","v":0}]
[]
[null,"ТРАНСПОРТ"]
[null,"Позиція ","Орієнтовно","Фактично"]
[null,"Лімузини та автобуси"]
[null,"Паркування"]
[null,"Таксі"]
[null,"Інші:"]
[null,"Загальні витрати на транспорт",{"$f":"SUBTOTAL(109,Транспорт[Орієнтовно])","v":0},{"$f":"SUBTOTAL(109,Транспорт[Фактично])","v":0}]
[]
[null,"ІНШІ ВИТРАТИ"]
[null,"Позиція ","Орієнтовно","Фактично"]
[null,"Священик"]
[null,"Плата за церкву та місце проведення церемонії"]
[null,"Організатор весілля"]
[null,"Репетиція весілля"]
[null,"Інші:"]
[null,"Загальна сума інших витрат",{"$f":"SUBTOTAL(109,ІншіВитрати[Орієнтовно])","v":0},{"$f":"SUBTOTAL(109,ІншіВитрати[Фактично])","v":0}]